Cogmind - Beta 16 @@@ ROGUE MODE // 2026.01.19 @ 16:41:55 Player: BottomOfTheSwamp Result: Destroyed by G-67 Veteran with Plasma Rifle Performance ------------- Evolutions (3) 1500 Regions Visited (11) 2200 Robots Destroyed (111) 555 Value Destroyed (3452) 3452 Prototype IDs (30) 600 Alien Tech Used (0) 0 Bonus (600) 600 TOTAL SCORE: 8907 Bonus ------- Aligned with FarCom 300 Met Imprinter 300 Cogmind --------- Core Integrity 0/700 Matter 289/300 Energy 150/150 System Corruption 5% Temperature Cool (0) Movement Flying (195) Ox2 Location -6/Proximity Caves Parts ------- > --- POWER (1) -------- Light Angular Momentum Engine > --- PROPULSION (3) --- Cesium-ion Thruster > --- UTILITY (6) ------ Improved Melee Analysis Suite Improved Melee Analysis Suite Target Analyzer Hacking Drone Bay (1/1) > --- WEAPON (3) ------- CR-A16's Pointy Stick > --- INVENTORY (5) ---- Recalibrator Flak Gun Advanced Assault Cannon Hardcell Cannon Heavy Missile Launcher Peak State ------------ > --- POWER ------------ Micro Nuclear Core > --- PROPULSION ------- Airjet Airjet Improved Linear Gravjet > --- UTILITY ---------- Improved Melee Analysis Suite Improved Melee Analysis Suite Improved Melee Analysis Suite Target Analyzer Armor Integrity Analyzer Improved Medium Armor Plating > --- WEAPON ----------- Enhanced Autogun Heavy Missile Launcher Spear > --- INVENTORY -------- Improved Linear Gravjet Improved Light Armor Plating Flak Gun Advanced Assault Cannon Hardcell Cannon [Rating: 54] Favorites ----------- Power Light Nuclear Core Engine Improved Deuterium Engine Power Core Light Nuclear Core Propulsion Aluminum Leg Leg Aluminum Leg Hover Unit Airjet Flight Unit Cesium-ion Thruster Utility Small Storage Unit Device Sensor Array Storage Small Storage Unit Processor Melee Analysis Suite Hackware Hacking Suite Protection Core Shielding Weapon Longsword +1 Energy Gun EM Pulse Gun Ballistic Gun Gauss Rifle Ballistic Cannon Light Cannon Launcher Mini Grenade Launcher Impact Weapon Power Maul Slashing Weapon Longsword +1 Piercing Weapon CR-A16's Pointy Stick Special Melee Weapon Datajack Build | -11 -10 -9 -9 -9 -8 -8 -7 -7 -7 -7 -6 ------- Run | Yrd Mat Mat Min Exi Min Mat Fac Low Low Zio Pro Slots Evolved 6 | . . 2 . . . 2 2 . . . . Power . | . . . . . . . . . . . . Propulsion 1 | . . . . . . . 1 . . . . Utility 4 | . . 2 . . . 1 1 . . . . Weapon 1 | . . . . . . 1 . . . . . Parts Attached 87 | 5 4 9 5 . 8 17 21 7 3 2 6 Power 16 | 1 . 3 1 . 1 5 3 1 . . 1 Engine 9 | 1 . 3 1 . . 1 2 . . . 1 Core 7 | . . . . . 1 4 1 1 . . . Reactor . | . . . . . . . . . . . . Propulsion 23 | 2 . . 3 . 2 6 6 1 . . 3 Treads . | . . . . . . . . . . . . Leg 9 | 2 . . 3 . 2 2 . . . . . Wheel . | . . . . . . . . . . . . Hover 10 | . . . . . . 4 5 1 . . . Flight 4 | . . . . . . . 1 . . . 3 Utility 24 | 1 2 2 . . 2 5 6 3 1 1 1 Device 6 | . 2 . . . . 2 1 . . 1 . Storage 1 | 1 . . . . . . . . . . . Processor 10 | . . . . . 1 2 3 3 . . 1 Hackware 1 | . . 1 . . . . . . . . . Protection 6 | . . 1 . . 1 1 2 . 1 . . Artifact . | . . . . . . . . . . . . Weapon 24 | 1 2 4 1 . 3 1 6 2 2 1 1 Energy Gun 1 | . . . . . 1 . . . . . . Energy Cannon . | . . . . . . . . . . . . Ballistic Gun 10 | 1 . 2 1 . 1 1 3 . . . 1 Ballistic Cannon 4 | . 2 1 . . . . . 1 . . . Launcher 3 | . . 1 . . . . 1 1 . . . Special Weapon . | . . . . . . . . . . . . Impact Weapon 1 | . . . . . . . . . 1 . . Slashing Weapon 2 | . . . . . 1 . 1 . . . . Piercing Weapon 2 | . . . . . . . . . 1 1 . Special Melee Weapon 1 | . . . . . . . 1 . . . . Unidentified Prototypes 7 | . . 1 . . . 2 3 . . 1 . Parts Lost 38 | . 1 1 2 . 3 7 8 2 10 . 4 Power 7 | . 1 1 . . . 3 . 1 1 . . Propulsion 8 | . . . . . . 2 1 . 3 . 2 Utility 15 | . . . 1 . 1 1 6 1 4 . 1 Weapon 8 | . . . 1 . 2 1 1 . 2 . 1 Highest Loss Streak 9 | . 1 1 2 . 2 3 4 1 9 . 3 To Critical Strikes 1 | . . . . . . . . 1 . . . Average Backups 6 | 1 4 7 7 8 7 7 7 6 3 4 5 Power . | . . . . 1 1 . . . . . . Propulsion 1 | . . 1 . 1 1 2 1 1 . . . Utility 2 | . 1 2 3 3 2 2 2 1 . . 1 Weapon 2 | . 3 3 2 3 2 1 3 3 3 3 4 Tool/Special . | . . . . . . . . . . . . Unused Backups 16 | . . 3 . . 1 6 2 . . . 4 Power 1 | . . 1 . . . . . . . . . Propulsion 3 | . . . . . 1 2 . . . . . Utility 4 | . . . . . . 1 2 . . . 1 Weapon 8 | . . 2 . . . 3 . . . . 3 Tool/Special . | . . . . . . . . . . . . Average Slot Usage (%) 86 | . 87 97 96 100 97 92 91 85 70 39 64 Engine 4 | . 8 10 11 11 . . 4 . . . . Core 3 | . . . . . 10 8 2 7 4 . . Leg 9 | . 28 22 22 22 22 6 . . . . . Hover 9 | . . . . . . 11 20 23 14 7 1 Device 9 | . 12 11 11 11 11 14 11 . . 1 7 Storage 7 | . 14 11 11 11 11 9 7 3 . . . Processor 9 | . . . . . 1 9 9 24 31 23 23 Hackware 2 | . . 10 11 11 . . . . . . . Protection 9 | . . 10 11 11 19 10 11 7 4 . . Ballistic Gun 8 | . 14 10 7 11 9 8 9 7 3 . 4 Ballistic Cannon 3 | . 9 10 11 11 . . . . . . . Launcher 1 | . . . . . . 2 3 2 2 . . Slashing Weapon 4 | . . . . . 9 9 6 7 . . . Peak Build Rating 54 | 5 7 14 14 14 28 38 52 53 54 29 40 Average Rating 27 | 2 6 11 13 13 23 33 42 44 37 21 38 On Entrance 21 | . 5 6 14 13 14 28 30 42 53 19 29 Avg Prop Armor Cover (%) 4 | . . . . . . 7 8 . 4 . 4 Naked Turns . | . . . . . . . . . . . . Heaviest Build 31 | 11 15 20 23 21 22 23 31 29 26 4 13 Greatest Support 43 | 20 20 20 20 20 30 43 36 26 26 8 10 Greatest Overweight (x) 2 | . . . 1 1 1 2 2 1 2 . 2 Average Overweight (x) . | . . . . 1 . . . . . . . Largest Inventory Capacity 8 | 8 8 8 8 8 8 8 8 8 5 5 5 Average Capacity 7 | 6 8 8 8 8 8 8 8 6 5 5 5 Most Carried 8 | 5 8 8 8 8 8 8 8 8 5 5 5 Average Carried 6 | 1 4 7 7 7 7 7 7 6 3 4 5 Final Capacity 8 | 8 8 8 8 8 8 8 8 5 5 5 5 Final Carried 8 | 1 8 8 8 8 8 6 8 5 3 5 5 Class Distribution -------------------- 51% | Mutant 37% | Scavenger-Mutant 7% | Scavenger-Assassin Dominant Class ---------------- Mutant | -10/Materials Mutant | -9/Materials Scavenger-Mutant | -9/Mines Scavenger-Mutant | -9/Exiles Scavenger-Assassin | -8/Mines Mutant | -8/Materials Scavenger-Mutant | -7/Factory Scavenger-Mutant | -7/Lower Caves Mutant | -7/Lower Caves Mutant | -7/Zion Scavenger-Sprinter | -6/Proximity Caves Resources | -11 -10 -9 -9 -9 -8 -8 -7 -7 -7 -7 -6 ----------- Run | Yrd Mat Mat Min Exi Min Mat Fac Low Low Zio Pro Matter Collected 1979 | 172 188 157 338 . 117 245 448 106 135 14 59 Remotely 48 | . . . . . . . 48 . . . . Salvage Created 4475 | . 98 322 245 . 515 1224 1494 243 225 . 109 Parts 227 | . 6 26 18 . 15 61 83 8 7 . 3 Haulers Intercepted 4 | . 1 1 . . . 2 . . . . . Recyclers Shooed 3 | . . 1 . . . . 2 . . . . Parts Field Recycled . | . . . . . . . . . . . . Retrieved Matter . | . . . . . . . . . . . . Parts Self-Destructed 13 | . . . . . . . . 7 5 . 1 Prevented 1 | . . . . . . . . . 1 . . Parts Restored . | . . . . . . . . . . . . Kills | -11 -10 -9 -9 -9 -8 -8 -7 -7 -7 -7 -6 ------- Run | Yrd Mat Mat Min Exi Min Mat Fac Low Low Zio Pro Combat Hostiles Destroyed 84 | . 2 12 8 . 4 18 23 6 7 . 4 Melee 52 | . . . . . 3 17 21 5 3 . 3 Guns 11 | . . 5 1 . 1 1 2 . . . 1 Cannons 8 | . 2 3 3 . . . . . . . . AOE 12 | . . 4 4 . . . . 1 3 . . Classes Destroyed 16 | . 3 4 2 . 2 3 1 . . . 1 Worker 7 | . 1 . 1 . . 1 4 . . . . Builder 4 | . . . . . . 3 1 . . . . Tunneler 2 | . . . . . 1 . 1 . . . . Hauler 4 | . 1 1 . . . 2 . . . . . Recycler 8 | . . . 1 . 2 2 3 . . . . Operator 1 | . . 1 . . . . . . . . . Watcher 4 | . . 1 . . . 2 1 . . . . Swarmer 18 | . . 7 4 . . . 4 . 3 . . Cutter 2 | . . . . . . 2 . . . . . Grunt 35 | . 2 2 3 . 2 10 9 4 2 . 1 Brawler 6 | . . . 1 . . . 2 2 1 . . Duelist 4 | . . . . . . 2 2 . . . . Sentry 11 | . . 3 . . . 4 3 . 1 . . Hunter 3 | . . . . . 2 . 1 . . . . Programmer 2 | . . . . . . . 2 . . . . Assembled 3 | . . . . . . . . . . . 3 Best Kill Streak 10 | . 3 10 6 . 5 5 6 2 4 . 3 Combat Bots Only 7 | . 2 7 4 . 2 4 4 2 4 . 3 Max Kills in Single Turn 3 | . 1 3 3 . 1 1 1 1 3 . 1 Gunslinging . | . . . . . . . . . . . . Exploded 3 | . . 2 2 . . . . 1 3 . . Melee 1 | . . . . . 1 1 1 1 1 . 1 Uniques/NPCs Destroyed . | . . . . . . . . . . . . Combat | -11 -10 -9 -9 -9 -8 -8 -7 -7 -7 -7 -6 -------- Run | Yrd Mat Mat Min Exi Min Mat Fac Low Low Zio Pro Hostile Shots Fired 413 | . 17 45 23 . 39 47 122 31 54 . 35 Missed 135 | . 5 13 5 . 8 17 43 14 16 . 14 Hits 278 | . 12 32 18 . 31 30 79 17 38 . 21 Melee 38 | . . . . . . 6 22 6 3 . 1 Projectile 240 | . 12 32 18 . 31 24 57 11 35 . 20 AOE 1 | . . . . . . 1 . . . . . Critical Strikes 20 | . . . 2 . . 3 8 4 3 . . Actively Blocked 1 | . . . . . . 1 . . . . . Damage Taken 4801 | . 175 411 269 . 466 599 1423 362 710 . 386 Core 870 | . 18 36 . . 32 74 359 13 127 . 211 Absorbed by Shields . | . . . . . . . . . . . . Redirected to Shielding 37 | . . 8 . . 7 14 8 . . . . Regen/Repaired (Parts) 79 | . . . . . . . 79 . . . . Core Remaining (%) 90 | 100 92 . . . 83 86 . . . . . Volleys Fired 110 | . 17 30 14 . 14 14 13 6 1 . 1 Largest 2 | . 2 2 2 . 2 2 2 1 1 . 1 Hottest 68 | . 50 53 53 . 60 68 58 55 39 . 30 Shots Fired 198 | . 34 58 24 . 23 28 23 6 1 . 1 Gun 121 | . 17 28 10 . 16 28 21 . . . 1 Cannon 66 | . 17 27 11 . 7 . . 4 . . . Launcher 11 | . . 3 3 . . . 2 2 1 . . Special . | . . . . . . . . . . . . Kinetic 171 | . 34 55 21 . 21 14 21 4 . . 1 Thermal . | . . . . . . . . . . . . Explosive 11 | . . 3 3 . . . 2 2 1 . . Electromagnetic 16 | . . . . . 2 14 . . . . . Robot Hit Streak 15 | . 10 13 8 . 8 5 7 13 14 . 15 Robot Miss Streak 6 | . 1 2 3 . 4 5 6 . . . . Penetration Max . | . . . . . . . . . . . . Secondary Targets . | . . . . . . . . . . . . Shots Hit Robots 311 | . 30 36 15 . 33 63 87 20 21 . 6 Core Hits 143 | . 8 22 14 . 11 28 36 13 7 . 4 Critical Kills 4 | . . 1 . . . . 1 . 2 . . Critical Parts Destroyed 1 | . . . . . . . . . 1 . . Critical Strikes 25 | . . 4 . . 2 3 12 1 3 . . Destroy 2 | . . 1 . . . . 1 . . . . Blast 3 | . . 3 . . . . . . . . . Smash 3 | . . . . . . . . . 3 . . Sever 17 | . . . . . 2 3 11 1 . . . Melee Attacks 196 | . . . . . 19 52 81 16 22 . 6 Impact 22 | . . . . . . . . . 22 . . Slashing 165 | . . . . . 19 52 78 16 . . . Piercing 6 | . . . . . . . . . . . 6 Sneak Attacks 34 | . . . . . 3 12 19 . . . . Combat Hostiles 7 | . . . . . . 3 4 . . . . Follow-up Attacks . | . . . . . . . . . . . . Damage Inflicted 12618 | . 374 856 588 . 1226 3182 4162 816 1162 . 252 Guns 952 | . 133 191 106 . 75 224 199 . . . 24 Cannons 939 | . 241 341 139 . 50 . . 168 . . . Explosions 1218 | . . 324 343 . . . 105 227 219 . . Melee 9509 | . . . . . 1101 2958 3858 421 943 . 228 Ramming . | . . . . . . . . . . . . Kinetic 1761 | . 374 532 245 . 100 119 199 168 . . 24 Thermal . | . . . . . . . . . . . . Explosive 1218 | . . 324 343 . . . 105 227 219 . . Electromagnetic 130 | . . . . . 25 105 . . . . . Impact 943 | . . . . . . . . . 943 . . Slashing 8338 | . . . . . 1101 2958 3858 421 . . . Piercing 228 | . . . . . . . . . . . 228 Highest Corruption 24 | . 1 . . . . . 6 9 24 24 5 Average Corruption 7 | . 1 . . . . . 3 7 15 24 5 Corruption Purged . | . . . . . . . . . . . . Corruption Blocked . | . . . . . . . . . . . . Effects 36 | . 1 . . . . . 7 8 13 1 6 Message Errors 9 | . 1 . . . . . 2 . 2 1 3 Matter Fused 12 | . . . . . . . 1 3 7 . 1 Heat Flow Errors 2 | . . . . . . . . 2 . . . Energy Discharges 5 | . . . . . . . 2 1 1 . 1 Parts Fused 1 | . . . . . . . . . 1 . . Data Loss (minor) 5 | . . . . . . . 1 1 2 . 1 Data Loss (major) 2 | . . . . . . . 1 1 . . . Overload Shots . | . . . . . . . . . . . . Overflow Damage 1185 | . 7 2 45 . 186 316 567 2 57 . 3 Projectiles 7 | . 7 . . . . . . . . . . Explosions 68 | . . 2 45 . . . 21 . . . . Melee 1110 | . . . . . 186 316 546 2 57 . 3 Knockbacks 8 | . 6 . . . 1 . . . 1 . . Impact 1 | . . . . . . . . . 1 . . Kinetic 5 | . 4 . . . 1 . . . . . . Secondary 2 | . 2 . . . . . . . . . . Self-Inflicted Damage 63 | . . 22 29 . . . . 12 . . . Shots 4 | . . 2 1 . . . . 1 . . . Rammed . | . . . . . . . . . . . . Targets Rammed . | . . . . . . . . . . . . Kicked . | . . . . . . . . . . . . Crushed . | . . . . . . . . . . . . Highest Temperature 194 | . 54 194 61 . 25 24 28 130 6 . 4 Average Temperature 22 | . 29 34 26 . 9 4 10 46 4 . 4 Received Heat Transfer 1340 | . 102 87 153 . 63 234 156 153 306 . 86 Siege Activations . | . . . . . . . . . . . . Martial Activations . | . . . . . . . . . . . . Shielding Activations . | . . . . . . . . . . . . Robots Disrupted . | . . . . . . . . . . . . Combat Hostiles . | . . . . . . . . . . . . Robots Corrupted 1 | . . . . . . . . . 1 . . Combat Hostiles 1 | . . . . . . . . . 1 . . Parts Fried 2 | . . . . . . . . . 2 . . Impact Corruptions 4 | . . . . . . . . . 4 . . Robots Melted . | . . . . . . . . . . . . Combat Hostiles . | . . . . . . . . . . . . Parts Melted . | . . . . . . . . . . . . Heat Transferred . | . . . . . . . . . . . . Parts Sabotaged . | . . . . . . . . . . . . Parts Stolen . | . . . . . . . . . . . . Parts Stripped . | . . . . . . . . . . . . Power Chain Reactions . | . . . . . . . . . . . . Alert | -11 -10 -9 -9 -9 -8 -8 -7 -7 -7 -7 -6 ------- Run | Yrd Mat Mat Min Exi Min Mat Fac Low Low Zio Pro Maximum Alert Level 1 | . . 1 . . . 1 1 . . . . Low Security (%) 89 | 100 100 95 100 . 100 96 70 . . . . Level 1 10 | . . 4 . . . 3 29 . . . . Level 2 . | . . . . . . . . . . . . Level 3 . | . . . . . . . . . . . . Level 4 . | . . . . . . . . . . . . Level 5 . | . . . . . . . . . . . . High Security . | . . . . . . . . . . . . Max Security . | . . . . . . . . . . . . Peak Influence 333 | . 55 211 140 . 115 244 333 . . . . Initial 95 | . . . 75 . . 1 95 . . . . Average 76 | . 8 27 77 . 32 98 114 . . . . Influence Increases 2999 | . 62 371 236 . 195 673 727 185 410 . 140 Destroy 0b10 Robot/C 1620 | . 40 240 160 . 80 360 460 120 140 . 20 Destroy 0b10 Robot/NC 160 | . 10 15 10 . 25 50 50 . . . . Destroy Leader 366 | . 12 64 30 . 30 98 112 20 . . . Successful Hack 40 | . . 25 . . . . 15 . . . . Disable Machine 45 | . . . 15 . . 15 15 . . . . Destroy Structure 48 | . . 27 21 . . . . . . . . Partial Spotted 105 | . . . . . . 75 30 . . . . Lose Combat Pursuer 615 | . . . . . 60 75 45 45 270 . 120 Influence Decreases 2899 | . 62 176 346 85 189 469 608 282 305 337 40 Entered New Map 829 | . . . 120 85 . 5 115 122 45 337 . Time Decay 1715 | . 62 166 206 . 189 394 388 140 160 . 10 Lost Part 330 | . . 10 20 . . 70 80 20 100 . 30 Lost Ally 25 | . . . . . . . 25 . . . . Squads Dispatched 16 | . . 1 . . . 4 10 . 1 . . Investigation 5 | . . . . . . 2 3 . . . . Extermination 4 | . . . . . . . 4 . . . . Reinforcement 3 | . . 1 . . . 2 . . . . . Assault 1 | . . . . . . . . . 1 . . Garrison 3 | . . . . . . . 3 . . . . Intercept . | . . . . . . . . . . . . Searches Triggered . | . . . . . . . . . . . . Construction Impeded . | . . . . . . . . . . . . Haulers Reinforced . | . . . . . . . . . . . . Active Scanning Responses . | . . . . . . . . . . . . Cargo Convoy Interrupts . | . . . . . . . . . . . . Stealth | -11 -10 -9 -9 -9 -8 -8 -7 -7 -7 -7 -6 --------- Run | Yrd Mat Mat Min Exi Min Mat Fac Low Low Zio Pro Distress Signals 9 | . . 3 . . . 1 2 . . . 3 Communications Jammed . | . . . . . . . . . . . . Distress Signals . | . . . . . . . . . . . . Times Spotted 148 | . 2 18 8 . 7 29 31 9 22 . 22 Peak Tracking Total 10 | . 2 7 4 . 4 4 6 5 9 . 10 Tactical Retreats 21 | . . . . . 2 4 3 2 9 . 1 Traps | -11 -10 -9 -9 -9 -8 -8 -7 -7 -7 -7 -6 ------- Run | Yrd Mat Mat Min Exi Min Mat Fac Low Low Zio Pro Traps Triggered 6 | . 1 1 . . . 2 2 . . . . Indirectly . | . . . . . . . . . . . . Trap Hack Attempts . | . . . . . . . . . . . . Triggered . | . . . . . . . . . . . . Disarmed . | . . . . . . . . . . . . Reprogrammed . | . . . . . . . . . . . . Reused . | . . . . . . . . . . . . Traps Extracted . | . . . . . . . . . . . . Installed . | . . . . . . . . . . . . Triggered . | . . . . . . . . . . . . Machines | -11 -10 -9 -9 -9 -8 -8 -7 -7 -7 -7 -6 ---------- Run | Yrd Mat Mat Min Exi Min Mat Fac Low Low Zio Pro Machines Disabled 3 | . . . 1 . . 1 1 . . . . Max in Single Turn 1 | . . . 1 . . 1 1 . . . . Machines Repaired . | . . . . . . . . . . . . Machines Dismantled . | . . . . . . . . . . . . Machines Sabotaged . | . . . . . . . . . . . . Overloaded Fab Kills . | . . . . . . . . . . . . Hacking | -11 -10 -9 -9 -9 -8 -8 -7 -7 -7 -7 -6 --------- Run | Yrd Mat Mat Min Exi Min Mat Fac Low Low Zio Pro Machines Accessed 23 | . 2 2 1 1 . 5 10 1 . 1 . Terminals 13 | . 2 2 1 . . 5 3 . . . . Fabricators 3 | . . . . . . . 3 . . . . Repair Stations 2 | . . . . . . . 2 . . . . Recycling Units . | . . . . . . . . . . . . Scanalyzers . | . . . . . . . . . . . . Garrison Access 2 | . . . . . . . 2 . . . . Total Hacks 50 | . 5 4 1 1 . 12 19 1 . 7 . Successful 20 | . . 2 1 1 . . 8 1 . 7 . Failed 30 | . 5 2 . . . 12 11 . . . . Catastrophic 10 | . 2 . . . . 5 3 . . . . Database Lockouts . | . . . . . . . . . . . . Manual 27 | . 5 4 1 1 . 12 4 . . . . Terminals 28 | . 5 4 1 . . 12 6 . . . . Fabricators 5 | . . . . . . . 5 . . . . Repair Stations 5 | . . . . . . . 5 . . . . Recycling Units . | . . . . . . . . . . . . Scanalyzers . | . . . . . . . . . . . . Garrison Access 3 | . . . . . . . 3 . . . . Terminal Hacks 13 | . . 2 1 1 . . 1 1 . 7 . Part Schematic 7 | . . . . . . . . . . 7 . Open Door 1 | . . . . . . . . 1 . . . Open DSF 1 | . . . . . . . 1 . . . . Branch Access Points 2 | . . 1 1 . . . . . . . . Terminal Index 1 | . . 1 . . . . . . . . . Proto ID Catalog 1 | . . . . 1 . . . . . . . Fabricator Hacks 3 | . . . . . . . 3 . . . . Build 3 | . . . . . . . 3 . . . . Repair Station Hacks 4 | . . . . . . . 4 . . . . Scan Component 3 | . . . . . . . 3 . . . . Repair 1 | . . . . . . . 1 . . . . Recycling Unit Hacks . | . . . . . . . . . . . . Scanalyzer . | . . . . . . . . . . . . Garrison Access Hacks . | . . . . . . . . . . . . Unauthorized Hacks . | . . . . . . . . . . . . Terminals . | . . . . . . . . . . . . Fabricators . | . . . . . . . . . . . . Repair Stations . | . . . . . . . . . . . . Recycling Units . | . . . . . . . . . . . . Scanalyzers . | . . . . . . . . . . . . Garrison Access . | . . . . . . . . . . . . Data Cores Recovered . | . . . . . . . . . . . . Used . | . . . . . . . . . . . . Hacking Detections 16 | . 2 2 . . . 5 7 . . . . Full Trace Events 3 | . 1 . . . . . 2 . . . . Feedback Events 1 | . . . . . . . 1 . . . . Corruption 1 | . . . . . . . 1 . . . . Feedback Blocked . | . . . . . . . . . . . . Robot Schematics Acquired 3 | . . . . . . . . . . 3 . Robots Built 4 | . . . . . . . 4 . . . . Authchips . | . . . . . . . . . . . . Time 81 | . . . . . . . 81 . . . . Total Robot Build Rating 4 | . . . . . . . 4 . . . . Part Schematics Acquired 21 | . . . . . . . . . . 21 . Parts Built 4 | . . . . . . . 4 . . . . Authchips . | . . . . . . . . . . . . Time 234 | . . . . . . . 234 . . . . Total Part Build Rating 28 | . . . . . . . 28 . . . . Part Studies Acquired . | . . . . . . . . . . . . Parts Repaired 1 | . . . . . . . 1 . . . . Time 26 | . . . . . . . 26 . . . . Parts Recycled . | . . . . . . . . . . . . Recycled Matter . | . . . . . . . . . . . . Retrieved Matter . | . . . . . . . . . . . . Retrieved Components . | . . . . . . . . . . . . Parts Scanalyzed . | . . . . . . . . . . . . Part Schematics Acquired . | . . . . . . . . . . . . Parts Damaged . | . . . . . . . . . . . . Bothacking | -11 -10 -9 -9 -9 -8 -8 -7 -7 -7 -7 -6 ------------ Run | Yrd Mat Mat Min Exi Min Mat Fac Low Low Zio Pro Used RIF Installer . | . . . . . . . . . . . . Robots Hacked 1 | . . . . . . . 1 . . . . Non-combat 1 | . . . . . . . 1 . . . . Combat . | . . . . . . . . . . . . Robot Hacks Applied 1 | . . . . . . . 1 . . . . parse_system 1 | . . . . . . . 1 . . . . Relay Couplers Released . | . . . . . . . . . . . . Fabnet Peak Effective % . | . . . . . . . . . . . . Robots Rewired . | . . . . . . . . . . . . Allies Hacked . | . . . . . . . . . . . . Hacks Repelled . | . . . . . . . . . . . . Allies | -11 -10 -9 -9 -9 -8 -8 -7 -7 -7 -7 -6 -------- Run | Yrd Mat Mat Min Exi Min Mat Fac Low Low Zio Pro Total Allies 8 | . . . . . . . 4 . . 4 . Largest Group 4 | . . . . . . . 4 . . 4 4 Highest-Rated Group 90 | . . . . . . . 24 . . 90 90 Highest-Rated Ally 31 | . . . . . . . 6 . . 31 31 Total Orders 2 | . . . . . . . 2 . . . . STAY 2 | . . . . . . . 2 . . . . Ally Attacks 28 | . . . . . . . . . . . 28 Total Damage 359 | . . . . . . . . . . . 359 Kills 8 | . . . . . . . . . . . 8 Allies Corrupted . | . . . . . . . . . . . . Allies Melted . | . . . . . . . . . . . . Intel | -11 -10 -9 -9 -9 -8 -8 -7 -7 -7 -7 -6 ------- Run | Yrd Mat Mat Min Exi Min Mat Fac Low Low Zio Pro Active Infowar (turns) 2690 | . 372 641 439 485 570 183 . . . . . Sensors 2547 | . 372 641 439 485 570 40 . . . . . Machine Analysis 143 | . . . . . . 143 . . . . . Robot Analysis Total . | . . . . . . . . . . . . Derelict Logs Recovered 9 | . . . . . . . . 2 3 2 2 Drone Launches . | . . . . . . . . . . . . Drone Recoveries . | . . . . . . . . . . . . Exploration | -11 -10 -9 -9 -9 -8 -8 -7 -7 -7 -7 -6 ------------- Run | Yrd Mat Mat Min Exi Min Mat Fac Low Low Zio Pro Turns Passed 6783 | 35 388 641 439 485 570 1326 1525 289 326 581 178 Spaces Moved 6093 | 32 247 362 243 252 344 889 1590 451 416 883 384 Core 26 | 19 . . . . . 6 1 . . . . Treads . | . . . . . . . . . . . . Legs 1733 | 13 247 362 243 252 344 272 . . . . . Wheels . | . . . . . . . . . . . . Hover 3965 | . . . . . . 611 1589 451 416 883 15 Flight 369 | . . . . . . . . . . . 369 Fastest Speed 32 | 50 120 120 120 190 120 50 45 45 45 60 32 Average Speed 75 | 78 120 120 158 190 120 75 47 45 58 60 34 Slowest Speed 195 | 120 120 120 190 190 190 180 150 111 180 60 195 Overloaded Moves . | . . . . . . . . . . . . Propulsion Burnouts . | . . . . . . . . . . . . Robots Hopped . | . . . . . . . . . . . . Potential Cave-ins . | . . . . . . . . . . . . Cave-ins Triggered . | . . . . . . . . . . . . Exploration Rate (%) 49 | 3 39 38 54 62 83 47 40 57 58 83 35 Regions Visited 11 Branch Regions 7 Pre-discovered Areas 3 | . . . . . . . . . 3 . . Known Exits Taken 1 | . . 1 . . . . . . . . . Unknown Exits Taken 10 | 1 1 . 1 1 1 1 1 1 1 1 . Scrap Searched 11 | . . . 1 . 1 . . 2 3 3 1 Spaces Dug . | . . . . . . . . . . . . Terrain Destroyed 100 | . . 25 24 . . 1 1 35 14 . . Melee . | . . . . . . . . . . . . Projectile 2 | . . . . . . 1 1 . . . . AOE 98 | . . 25 24 . . . . 35 14 . . Terrain Rammed . | . . . . . . . . . . . . Walls Destroyed . | . . . . . . . . . . . . Machines Disabled . | . . . . . . . . . . . . Actions | -11 -10 -9 -9 -9 -8 -8 -7 -7 -7 -7 -6 --------- Run | Yrd Mat Mat Min Exi Min Mat Fac Low Low Zio Pro Total 7872 | 41 308 511 272 259 460 1465 2260 497 451 933 415 Wait 1231 | . 29 95 1 6 65 452 499 14 7 46 17 Move 6081 | 31 246 361 242 251 343 887 1589 450 415 882 384 Hop . | . . . . . . . . . . . . Pick Up 78 | 5 10 5 4 1 6 18 25 2 . 2 . Fast Attach 38 | 1 . 6 1 . . 7 9 4 2 2 6 Attach 43 | 4 2 2 2 . 3 9 18 1 2 . . Detach 3 | . . . . . . . 3 . . . . Swap 30 | . 2 5 4 . 6 7 4 2 . . . Drop 61 | . 2 7 4 1 4 18 19 2 2 1 1 Fire 110 | . 17 30 14 . 14 14 13 6 1 . 1 Melee 196 | . . . . . 19 52 81 16 22 . 6 Ram . | . . . . . . . . . . . . Kick . | . . . . . . . . . . . . Crush . | . . . . . . . . . . . . Escape Stasis 1 | . . . . . . 1 . . . . . Rewire . | . . . . . . . . . . . . Trap . | . . . . . . . . . . . . Miscellaneous . | . . . . . . . . . . . . Route ------- -11/Scrapyard -10/Materials (discovered 2 exits: *Mat / [*Min]) -9/Materials (discovered 2 exits: *Min / *Sto) -9/Mines -9/Exiles -8/Mines -8/Materials -7/Factory -7/Lower Caves -7/Lower Caves -7/Zion -6/Proximity Caves History --------- Turn | Location | Event 8 | -11/Scrapyard | Discovered new exit (range 16) 36 | -11/Scrapyard | Entered Materials 148 | -10/Materials | Discovered new exit (range 7) 310 | -10/Materials | Build established: Mutant 381 | -10/Materials | Discovered new exit (range 16) 424 | -10/Materials | Entered another Materials area 424 | -9/Materials | Evolved 2 slots: Utility x2 675 | -9/Materials | Identified exit to Mines 675 | -9/Materials | Identified exit to Storage 1053 | -9/Materials | Destroyed 7 combat bots 1065 | -9/Materials | Entered Mines 1496 | -9/Mines | Deemed a non-threat by the Exiles lab entrance 1496 | -9/Mines | Discovered new exit (range 5) 1504 | -9/Mines | Entered Exiles 1552 | -9/Exiles | Met 8R-AWN 1580 | -9/Exiles | Build established: Scavenger-Mutant 1599 | -9/Exiles | Met EX-HEX 1664 | -9/Exiles | Met EX-BIN 1687 | -9/Exiles | Aligned with FarCom system 1689 | -9/Exiles | Given EX-Vault access code 1734 | -9/Exiles | Opened EX-Vault 1752 | -9/Exiles | Found Longsword +1 1787 | -9/Exiles | Warned to stay clear of 0b10 Research branches 1813 | -9/Exiles | Exiles lab attacked by MAIN.C 1972 | -9/Exiles | Discovered new exit (range 10) 1989 | -9/Exiles | Left Exiles lab with Longsword +1 1989 | -9/Exiles | Entered Mines 2399 | -8/Mines | Build established: Scavenger-Assassin 2541 | -8/Mines | Discovered new exit (range 14) 2559 | -8/Mines | Entered Materials 2559 | -8/Materials | Evolved 2 slots: Utility x1, Weapon x1 3230 | -8/Materials | Build established: Mutant 3835 | -8/Materials | Discovered new exit (range 15) 3885 | -8/Materials | Entered Factory 3885 | -7/Factory | Evolved 2 slots: Propulsion x1, Utility x1 3899 | -7/Factory | Lost 3 parts (1p2n) 4043 | -7/Factory | Fabricated Imp. Linear Gravjet (x2) 4379 | -7/Factory | Fabricated K-01 Serf (x4) 4413 | -7/Factory | Fabricated Hardcell Cannon (x2) 4495 | -7/Factory | Build established: Scavenger-Mutant 4855 | -7/Factory | Found Prototype Launcher 4855 | -7/Factory | Identified Rocket Array 4988 | -7/Factory | Repaired Lgt. Armor Plating 5109 | -7/Factory | Garrison activated, responded to threat 5315 | -7/Factory | Lost 4 parts (3u1w) 5396 | -7/Factory | Core integrity fell below 50% 5405 | -7/Factory | Discovered new exit (range 12) 5410 | -7/Factory | Entered Lower Caves 5424 | -7/Lower Caves | Learned Factory terminal intel 5456 | -7/Lower Caves | Spotted B-75 Beast 5485 | -7/Lower Caves | Learned location of 1 exit from Factory 5674 | -7/Lower Caves | Encountered a Warlord checkpoint 5695 | -7/Lower Caves | Discovered new exit (range 9) 5699 | -7/Lower Caves | Entered another Lower Caves area 5742 | -7/Lower Caves | Learned location of Extension (-5) 5774 | -7/Lower Caves | Attracted the attention of an 0b10 outpost 5805 | -7/Lower Caves | Spotted B-75 Beast 5864 | -7/Lower Caves | System corruption reached 10% 5923 | -7/Lower Caves | Lost 9 parts (3n4u2w) 5950 | -7/Lower Caves | Build established: Mutant 6021 | -7/Lower Caves | Discovered new exit (range 6) 6025 | -7/Lower Caves | Entered Zion 6055 | -7/Zion | System corruption cleaned by Quarantine Array 6145 | -7/Zion | Gained Derelict followers 6157 | -7/Zion | Given A8's code to call for help 6171 | -7/Zion | Learned location of 1 exit from Lower Caves 6209 | -7/Zion | Learned Factory emergency access door positions 6233 | -7/Zion | Rebuked by Imprinter 6288 | -7/Zion | Found CR-A16's Pointy Stick 6460 | -7/Zion | Given the Hacking Drone Bay 6461 | -7/Zion | Found Prototype Device 6461 | -7/Zion | Identified Hacking Drone Bay 6559 | -7/Zion | Discovered new exit (range 11) 6606 | -7/Zion | Entered Proximity Caves 6606 | -6/Proximity Caves | Accompanied by 4 allies 6607 | -6/Proximity Caves | Encountered an infested base 6642 | -6/Proximity Caves | Learned Factory security intel 6667 | -6/Proximity Caves | Lost 3 allies 6748 | -6/Proximity Caves | Core integrity fell below 20% 6784 | -6/Proximity Caves | Destroyed by G-67 Veteran with Plasma Rifle Last Messages --------------- 06643_ Acquired Hvy. Machine Gun. 06644_ as-81286 destroyed. 06646_ Acquired 11 matter. 06647_ Acquired 3 matter. 06659_ System corrupted: Energy discharge (-24). 06673_ Acquired derelict log, extracted data. Data stored: Upper Caves entrances (x1). 06678_ MQOJ4YPHMMCGC